[Event "Early-Titled-Tuesday-Blitz-March-05-2024"]
[Site "Chess.com"]
[Date "2024.03.05"]
[Round "5"]
[White "ckgchess"]
[Black "vi_pranav"]
[Result "1-0"]
[WhiteElo "2910"]
[BlackElo "3056"]
[TimeControl "180+1"]
[EndTime "8:58:31 PST"]
[Termination "ckgchess won by checkmate"]

1. e4 {[%clk 0:03:00.9]} 1... e5 {[%clk 0:02:59.9]} 2. Nf3 {[%clk 0:03:00.6]}
2... Nc6 {[%clk 0:03:00.5]} 3. Bc4 {[%clk 0:02:59.9]} 3... Nf6 {[%clk
0:03:00.9]} 4. Ng5 {[%clk 0:03:00.3]} 4... d5 {[%clk 0:03:01.3]} 5. exd5 {[%clk
0:03:01.2]} 5... Na5 {[%clk 0:03:01.9]} 6. Bb5+ {[%clk 0:03:01.8]} 6... c6
{[%clk 0:03:02.5]} 7. dxc6 {[%clk 0:03:02.7]} 7... bxc6 {[%clk 0:03:03.4]} 8.
Bd3 {[%clk 0:03:03.4]} 8... Be7 {[%clk 0:03:00.8]} 9. O-O {[%clk 0:03:03]} 9...
O-O {[%clk 0:02:59.2]} 10. Re1 {[%clk 0:03:01.6]} 10... Bd6 {[%clk 0:02:54.7]}
11. Nc3 {[%clk 0:02:55.4]} 11... h6 {[%clk 0:02:48.6]} 12. Nf3 {[%clk
0:02:47.3]} 12... Re8 {[%clk 0:02:44.1]} 13. h3 {[%clk 0:02:38.7]} 13... Nd5
{[%clk 0:02:38.5]} 14. Bf1 {[%clk 0:02:20.4]} 14... f5 {[%clk 0:02:13.4]} 15. d4
{[%clk 0:01:56.2]} 15... e4 {[%clk 0:01:41.6]} 16. Ne5 {[%clk 0:01:56.4]} 16...
Nxc3 {[%clk 0:01:35.9]} 17. bxc3 {[%clk 0:01:56.6]} 17... Bxe5 {[%clk
0:01:19.7]} 18. dxe5 {[%clk 0:01:57.5]} 18... Qe7 {[%clk 0:01:20.4]} 19. Qh5
{[%clk 0:01:28.2]} 19... Qxe5 {[%clk 0:00:45.9]} 20. Bf4 {[%clk 0:01:28]} 20...
Qe7 {[%clk 0:00:42.6]} 21. Rad1 {[%clk 0:01:27.8]} 21... Be6 {[%clk 0:00:40.7]}
22. Rd6 {[%clk 0:01:12]} 22... Qf7 {[%clk 0:00:33.4]} 23. Qh4 {[%clk 0:00:55.9]}
23... Qe7 {[%clk 0:00:20.2]} 24. Qg3 {[%clk 0:00:52.8]} 24... Kh7 {[%clk
0:00:19.7]} 25. Red1 {[%clk 0:00:43.9]} 25... Qf7 {[%clk 0:00:16.7]} 26. Qe3
{[%clk 0:00:34]} 26... Rac8 {[%clk 0:00:11]} 27. h4 {[%clk 0:00:34.1]} 27... Nb7
{[%clk 0:00:10.1]} 28. R6d2 {[%clk 0:00:31.5]} 28... Na5 {[%clk 0:00:07.9]} 29.
Qc5 {[%clk 0:00:17.8]} 29... Nb7 {[%clk 0:00:07.6]} 30. Qxa7 {[%clk 0:00:18]}
30... Nd6 {[%clk 0:00:04.8]} 31. Qc5 {[%clk 0:00:15.4]} 31... Nb5 {[%clk
0:00:03.3]} 32. a4 {[%clk 0:00:14.7]} 32... Nc7 {[%clk 0:00:03.6]} 33. c4 {[%clk
0:00:10.8]} 33... Na6 {[%clk 0:00:02.7]} 34. Qe3 {[%clk 0:00:10.6]} 34... Bxc4
{[%clk 0:00:01.8]} 35. Rd7 {[%clk 0:00:10.2]} 35... Qe6 {[%clk 0:00:01.9]} 36.
Bxc4 {[%clk 0:00:06.7]} 36... Qxc4 {[%clk 0:00:02.4]} 37. Bxh6 {[%clk
0:00:07.2]} 37... Rg8 {[%clk 0:00:02.2]} 38. Qg5 {[%clk 0:00:06.4]} 38... Rc7
{[%clk 0:00:02.5]} 39. Bxg7 {[%clk 0:00:05]} 39... Rxd7 {[%clk 0:00:01.7]} 40.
Qh6# {[%clk 0:00:05.4]} 1-0

[Event "Early-Titled-Tuesday-Blitz-March-05-2024"]
[Site "Chess.com"]
[Date "2024.03.05"]
[Round "5"]
[White "Viacheslav92"]
[Black "pr1105"]
[Result "1/2-1/2"]
[WhiteElo "2540"]
[BlackElo "2362"]
[TimeControl "180+1"]
[EndTime "8:58:31 PST"]
[Termination "Game drawn - insufficient material"]

1. d4 {[%clk 0:03:00.9]} 1... Nf6 {[%clk 0:02:57.5]} 2. Bg5 {[%clk 0:02:57.9]}
2... d5 {[%clk 0:02:57.4]} 3. Bxf6 {[%clk 0:02:50.1]} 3... gxf6 {[%clk
0:02:58.3]} 4. e3 {[%clk 0:02:50.1]} 4... c5 {[%clk 0:02:55.6]} 5. c4 {[%clk
0:02:48]} 5... cxd4 {[%clk 0:02:50.5]} 6. exd4 {[%clk 0:02:48.9]} 6... e5 {[%clk
0:02:51.1]} 7. Nc3 {[%clk 0:02:44.2]} 7... Bb4 {[%clk 0:02:37.6]} 8. Ne2 {[%clk
0:02:41.7]} 8... Nc6 {[%clk 0:02:34]} 9. cxd5 {[%clk 0:02:40.5]} 9... Qxd5
{[%clk 0:02:33.7]} 10. dxe5 {[%clk 0:02:36.8]} 10... Qxd1+ {[%clk 0:02:30.2]}
11. Rxd1 {[%clk 0:02:37.7]} 11... fxe5 {[%clk 0:02:29.8]} 12. a3 {[%clk
0:02:35.8]} 12... Ba5 {[%clk 0:02:25.3]} 13. b4 {[%clk 0:02:34]} 13... Bd8
{[%clk 0:02:06]} 14. Ng3 {[%clk 0:02:20.3]} 14... a5 {[%clk 0:01:57.1]} 15. b5
{[%clk 0:01:49.2]} 15... Nd4 {[%clk 0:01:56.8]} 16. Bd3 {[%clk 0:01:43.4]} 16...
Be6 {[%clk 0:01:44.3]} 17. O-O {[%clk 0:01:41.3]} 17... Rc8 {[%clk 0:01:21.5]}
18. Nce4 {[%clk 0:01:40.6]} 18... Be7 {[%clk 0:01:20.6]} 19. Rc1 {[%clk
0:01:29.5]} 19... Kd7 {[%clk 0:00:53]} 20. a4 {[%clk 0:01:17.6]} 20... f5 {[%clk
0:00:44.6]} 21. Nd2 {[%clk 0:01:17.4]} 21... e4 {[%clk 0:00:37.2]} 22. Bb1
{[%clk 0:01:17.3]} 22... Rxc1 {[%clk 0:00:29.9]} 23. Rxc1 {[%clk 0:01:16.4]}
23... f4 {[%clk 0:00:30.2]} 24. Ndxe4 {[%clk 0:01:05.8]} 24... fxg3 {[%clk
0:00:29]} 25. Rd1 {[%clk 0:01:06.5]} 25... gxh2+ {[%clk 0:00:15.4]} 26. Kxh2
{[%clk 0:01:03.9]} 26... Rc8 {[%clk 0:00:14.1]} 27. Rxd4+ {[%clk 0:01:02.7]}
27... Ke8 {[%clk 0:00:14.8]} 28. Nd6+ {[%clk 0:01:00.6]} 28... Bxd6+ {[%clk
0:00:13.2]} 29. Rxd6 {[%clk 0:01:01.5]} 29... Ke7 {[%clk 0:00:14.1]} 30. Rb6
{[%clk 0:01:00.9]} 30... Rc7 {[%clk 0:00:13.5]} 31. Be4 {[%clk 0:01:00]} 31...
Rc4 {[%clk 0:00:09.2]} 32. f3 {[%clk 0:00:48.5]} 32... Rxa4 {[%clk 0:00:09]} 33.
Rxb7+ {[%clk 0:00:47.8]} 33... Kd6 {[%clk 0:00:09.7]} 34. Rxh7 {[%clk
0:00:43.5]} 34... Rb4 {[%clk 0:00:10.2]} 35. Bc6 {[%clk 0:00:38.2]} 35... a4
{[%clk 0:00:10.7]} 36. Ra7 {[%clk 0:00:38.1]} 36... Bd5 {[%clk 0:00:08.5]} 37.
Bxd5 {[%clk 0:00:35.4]} 37... Kxd5 {[%clk 0:00:09.4]} 38. b6 {[%clk 0:00:36]}
38... Kc6 {[%clk 0:00:10.1]} 39. b7 {[%clk 0:00:36.1]} 39... Kc7 {[%clk
0:00:10.8]} 40. g4 {[%clk 0:00:26.6]} 40... Kb8 {[%clk 0:00:11.3]} 41. Ra5
{[%clk 0:00:22.9]} 41... Kxb7 {[%clk 0:00:12.2]} 42. Kg3 {[%clk 0:00:22.7]}
42... Kb6 {[%clk 0:00:12.7]} 43. Ra8 {[%clk 0:00:22.6]} 43... Kb7 {[%clk
0:00:13.3]} 44. Rh8 {[%clk 0:00:20.3]} 44... a3 {[%clk 0:00:13.4]} 45. Rh1
{[%clk 0:00:19.1]} 45... a2 {[%clk 0:00:13.4]} 46. Ra1 {[%clk 0:00:18.1]} 46...
Ra4 {[%clk 0:00:14.1]} 47. g5 {[%clk 0:00:18.2]} 47... Kc7 {[%clk 0:00:14.2]}
48. f4 {[%clk 0:00:17.1]} 48... Kd7 {[%clk 0:00:14.8]} 49. Kf3 {[%clk
0:00:16.3]} 49... Ke6 {[%clk 0:00:15.3]} 50. Ke3 {[%clk 0:00:14.8]} 50... Kf5
{[%clk 0:00:15.7]} 51. Kd3 {[%clk 0:00:15.2]} 51... Kxf4 {[%clk 0:00:15.2]} 52.
Kc3 {[%clk 0:00:15.9]} 52... Kxg5 {[%clk 0:00:14.9]} 53. Kb3 {[%clk 0:00:16.6]}
53... Ra8 {[%clk 0:00:15.1]} 54. Rxa2 {[%clk 0:00:17.3]} 54... Rxa2 {[%clk
0:00:16]} 55. Kxa2 {[%clk 0:00:18.2]} 1/2-1/2

[Event "Early-Titled-Tuesday-Blitz-March-05-2024"]
[Site "Chess.com"]
[Date "2024.03.05"]
[Round "5"]
[White "Happy1712Drummer"]
[Black "aljado"]
[Result "1-0"]
[WhiteElo "2310"]
[BlackElo "2050"]
[TimeControl "180+1"]
[EndTime "8:58:31 PST"]
[Termination "Happy1712Drummer won on time"]

1. e4 {[%clk 0:03:00.9]} 1... c5 {[%clk 0:02:59.6]} 2. d4 {[%clk 0:03:00.1]}
2... cxd4 {[%clk 0:02:58]} 3. c3 {[%clk 0:03:00.6]} 3... e6 {[%clk 0:02:57.9]}
4. cxd4 {[%clk 0:03:00.4]} 4... d5 {[%clk 0:02:57.7]} 5. e5 {[%clk 0:02:57.7]}
5... Nc6 {[%clk 0:02:56.4]} 6. Nc3 {[%clk 0:02:54.3]} 6... Qb6 {[%clk
0:02:54.9]} 7. Nf3 {[%clk 0:02:53.4]} 7... Nge7 {[%clk 0:02:52.6]} 8. Bd3 {[%clk
0:02:53.1]} 8... Bd7 {[%clk 0:02:49.8]} 9. Be3 {[%clk 0:02:49.9]} 9... a6 {[%clk
0:02:27.4]} 10. O-O {[%clk 0:02:42.7]} 10... Ng6 {[%clk 0:02:17.4]} 11. h4
{[%clk 0:02:37]} 11... Be7 {[%clk 0:02:12.4]} 12. h5 {[%clk 0:02:35.2]} 12...
Nh4 {[%clk 0:02:11.7]} 13. Nxh4 {[%clk 0:02:31.5]} 13... Bxh4 {[%clk 0:02:10]}
14. Qg4 {[%clk 0:02:25.9]} 14... Be7 {[%clk 0:02:09.2]} 15. Qxg7 {[%clk
0:02:24.7]} 15... O-O-O {[%clk 0:02:06.8]} 16. Na4 {[%clk 0:02:18.3]} 16... Qa5
{[%clk 0:02:03]} 17. Nc5 {[%clk 0:01:37.7]} 17... Rhg8 {[%clk 0:01:35.9]} 18.
Qh6 {[%clk 0:01:27.2]} 18... Bxc5 {[%clk 0:01:33.7]} 19. dxc5 {[%clk 0:01:27.1]}
19... Nxe5 {[%clk 0:01:26.1]} 20. Bxh7 {[%clk 0:01:16]} 20... Ng4 {[%clk
0:01:01]} 21. Qf4 {[%clk 0:01:15.4]} 21... Rg7 {[%clk 0:00:56.7]} 22. Bd3 {[%clk
0:00:50]} 22... Nxe3 {[%clk 0:00:53.5]} 23. Qxe3 {[%clk 0:00:47.6]} 23... Rdg8
{[%clk 0:00:49]} 24. g3 {[%clk 0:00:47.8]} 24... Qd8 {[%clk 0:00:37.3]} 25. h6
{[%clk 0:00:39.3]} 25... Rg4 {[%clk 0:00:35.4]} 26. h7 {[%clk 0:00:36.2]} 26...
Rh8 {[%clk 0:00:34.7]} 27. Qe2 {[%clk 0:00:32.7]} 27... f5 {[%clk 0:00:31.6]}
28. Rac1 {[%clk 0:00:22.4]} 28... Qh4 {[%clk 0:00:28]} 29. Bxa6 {[%clk
0:00:19.8]} 29... Rxh7 {[%clk 0:00:24.6]} 30. Bxb7+ {[%clk 0:00:19.6]} 30... Kd8
{[%clk 0:00:20.2]} 31. Kg2 {[%clk 0:00:10.6]} 31... Qh3+ {[%clk 0:00:09]} 32.
Kf3 {[%clk 0:00:09.9]} 32... Qh5 {[%clk 0:00:06.9]} 33. Kg2 {[%clk 0:00:08.1]}
33... Qh3+ {[%clk 0:00:05.8]} 34. Kf3 {[%clk 0:00:07.8]} 34... Qh5 {[%clk
0:00:06.3]} 35. Rh1 {[%clk 0:00:04.4]} 35... Rf4+ {[%clk 0:00:03.6]} 36. Kxf4
{[%clk 0:00:03.7]} 36... Qxe2 {[%clk 0:00:02.5]} 37. Rxh7 {[%clk 0:00:03.7]}
37... Qd2+ {[%clk 0:00:02.6]} 38. Ke5 {[%clk 0:00:03.6]} 38... Qxc1 {[%clk
0:00:02.8]} 39. Kd6 {[%clk 0:00:03.3]} 1-0

[Event "Early-Titled-Tuesday-Blitz-March-05-2024"]
[Site "Chess.com"]
[Date "2024.03.05"]
[Round "5"]
[White "Kostya0705"]
[Black "francyIM"]
[Result "0-1"]
[WhiteElo "2580"]
[BlackElo "2772"]
[TimeControl "180+1"]
[EndTime "8:58:32 PST"]
[Termination "francyIM won by resignation"]

1. e4 {[%clk 0:03:00.9]} 1... g6 {[%clk 0:02:57.2]} 2. d4 {[%clk 0:02:56.4]}
2... Bg7 {[%clk 0:02:56.4]} 3. Nc3 {[%clk 0:02:55.3]} 3... d6 {[%clk 0:02:52.9]}
4. Be3 {[%clk 0:02:35.3]} 4... a6 {[%clk 0:02:50.9]} 5. h4 {[%clk 0:02:30.3]}
5... b5 {[%clk 0:02:43.6]} 6. f3 {[%clk 0:02:22.9]} 6... Nd7 {[%clk 0:02:38.3]}
7. Qd2 {[%clk 0:02:23]} 7... Bb7 {[%clk 0:02:37.8]} 8. O-O-O {[%clk 0:02:20.2]}
8... Rc8 {[%clk 0:02:37.3]} 9. Nh3 {[%clk 0:02:17.2]} 9... c5 {[%clk 0:02:37.2]}
10. dxc5 {[%clk 0:02:06.7]} 10... Nxc5 {[%clk 0:02:36.9]} 11. Bd4 {[%clk
0:01:46.6]} 11... Nf6 {[%clk 0:02:27.6]} 12. Kb1 {[%clk 0:01:43.9]} 12... O-O
{[%clk 0:02:22.9]} 13. Ng5 {[%clk 0:01:42.2]} 13... e5 {[%clk 0:01:49.3]} 14.
Be3 {[%clk 0:01:33.6]} 14... b4 {[%clk 0:01:49.2]} 15. Nd5 {[%clk 0:01:32.9]}
15... Nxd5 {[%clk 0:01:42.7]} 16. exd5 {[%clk 0:01:33.8]} 16... a5 {[%clk
0:01:37.5]} 17. Ne4 {[%clk 0:01:25.3]} 17... Nxe4 {[%clk 0:01:28.6]} 18. fxe4
{[%clk 0:01:24.3]} 18... f5 {[%clk 0:01:29.5]} 19. Bg5 {[%clk 0:01:13.7]} 19...
Qc7 {[%clk 0:01:26.5]} 20. Bd3 {[%clk 0:01:10.4]} 20... f4 {[%clk 0:01:19.6]}
21. h5 {[%clk 0:01:05.9]} 21... Qf7 {[%clk 0:01:12.9]} 22. Be2 {[%clk
0:00:57.2]} 22... h6 {[%clk 0:01:06.8]} 23. hxg6 {[%clk 0:00:57]} 23... Qxg6
{[%clk 0:01:06.5]} 24. Bh4 {[%clk 0:00:56.5]} 24... Qxe4 {[%clk 0:01:01.3]} 25.
Bf3 {[%clk 0:00:50.4]} 25... Qf5 {[%clk 0:00:59.6]} 26. Qe2 {[%clk 0:00:48.5]}
26... Rc7 {[%clk 0:00:45.9]} 27. Be4 {[%clk 0:00:41.9]} 27... Qf7 {[%clk
0:00:39.4]} 28. Qd3 {[%clk 0:00:29.7]} 28... Rfc8 {[%clk 0:00:19.6]} 29. Rd2
{[%clk 0:00:21.3]} 29... Rc5 {[%clk 0:00:18.9]} 30. Qf3 {[%clk 0:00:17.4]} 30...
Rc4 {[%clk 0:00:18]} 31. Rf1 {[%clk 0:00:12.3]} 31... Rxe4 {[%clk 0:00:18.4]}
32. Qxe4 {[%clk 0:00:12.2]} 32... Ba6 {[%clk 0:00:18.7]} 33. Rfd1 {[%clk
0:00:11.8]} 33... Rc4 {[%clk 0:00:19.3]} 34. Qf3 {[%clk 0:00:11.6]} 34... Bc8
{[%clk 0:00:19.2]} 35. g3 {[%clk 0:00:10.5]} 35... fxg3 {[%clk 0:00:17.4]} 36.
Qxf7+ {[%clk 0:00:10.5]} 36... Kxf7 {[%clk 0:00:17.8]} 37. Bxg3 {[%clk
0:00:11.4]} 37... Bf5 {[%clk 0:00:18.3]} 38. Rf1 {[%clk 0:00:11.7]} 38... Kg6
{[%clk 0:00:18.8]} 39. Kc1 {[%clk 0:00:11.5]} 39... Bf6 {[%clk 0:00:19.1]} 40.
Kd1 {[%clk 0:00:07]} 40... Bg5 {[%clk 0:00:20]} 41. Rg2 {[%clk 0:00:06.8]} 41...
Bh3 {[%clk 0:00:19.8]} 42. Rfg1 {[%clk 0:00:04.5]} 42... Rd4+ {[%clk 0:00:20.3]}
43. Ke1 {[%clk 0:00:03.7]} 43... Bxg2 {[%clk 0:00:20.7]} 44. Rxg2 {[%clk
0:00:04.6]} 44... Rxd5 {[%clk 0:00:21.6]} 45. Bf2 {[%clk 0:00:02.8]} 45... e4
{[%clk 0:00:21.5]} 46. Bc5 {[%clk 0:00:02.4]} 46... Rxc5 {[%clk 0:00:21.5]} 0-1

[Event "Early-Titled-Tuesday-Blitz-March-05-2024"]
[Site "Chess.com"]
[Date "2024.03.05"]
[Round "5"]
[White "Eloist"]
[Black "karinachess1"]
[Result "0-1"]
[WhiteElo "2444"]
[BlackElo "2593"]
[TimeControl "180+1"]
[EndTime "8:58:33 PST"]
[Termination "karinachess1 won by checkmate"]

1. e4 {[%clk 0:03:00.9]} 1... e5 {[%clk 0:02:59.9]} 2. Bc4 {[%clk 0:02:59.6]}
2... Nf6 {[%clk 0:02:59.5]} 3. d3 {[%clk 0:02:59.6]} 3... c6 {[%clk 0:02:58.5]}
4. Nf3 {[%clk 0:02:59.6]} 4... Be7 {[%clk 0:02:58.1]} 5. O-O {[%clk 0:02:58.7]}
5... d6 {[%clk 0:02:58]} 6. c3 {[%clk 0:02:58.8]} 6... O-O {[%clk 0:02:56.4]} 7.
Bb3 {[%clk 0:02:56.4]} 7... Nbd7 {[%clk 0:02:55.4]} 8. Nbd2 {[%clk 0:02:56.1]}
8... Nc5 {[%clk 0:02:52.2]} 9. Bc2 {[%clk 0:02:55.7]} 9... Bg4 {[%clk
0:02:51.8]} 10. h3 {[%clk 0:02:55.4]} 10... Bh5 {[%clk 0:02:52]} 11. Re1 {[%clk
0:02:55.5]} 11... Ne6 {[%clk 0:02:44.2]} 12. Nf1 {[%clk 0:02:55]} 12... Re8
{[%clk 0:02:29.4]} 13. Ng3 {[%clk 0:02:54.7]} 13... Bg6 {[%clk 0:02:27.3]} 14.
d4 {[%clk 0:02:53.9]} 14... Nd7 {[%clk 0:02:19.2]} 15. Nf5 {[%clk 0:02:49.8]}
15... Bf8 {[%clk 0:02:15.5]} 16. Be3 {[%clk 0:02:39]} 16... Qc7 {[%clk
0:02:13.9]} 17. N3h4 {[%clk 0:02:33.8]} 17... Rad8 {[%clk 0:02:00.4]} 18. Qd2
{[%clk 0:02:31]} 18... exd4 {[%clk 0:01:31.8]} 19. cxd4 {[%clk 0:02:27.9]} 19...
d5 {[%clk 0:01:32.4]} 20. exd5 {[%clk 0:02:12.3]} 20... cxd5 {[%clk 0:01:32]}
21. Rac1 {[%clk 0:02:12.1]} 21... Qb6 {[%clk 0:01:29.3]} 22. Bb3 {[%clk
0:01:59.7]} 22... Nf6 {[%clk 0:01:27]} 23. Ba4 {[%clk 0:01:59.2]} 23... Bb4
{[%clk 0:01:13.1]} 24. Qd3 {[%clk 0:01:39.7]} 24... Bxe1 {[%clk 0:01:12.2]} 25.
Bxe8 {[%clk 0:01:38.5]} 25... Bxf2+ {[%clk 0:01:09.3]} 26. Bxf2 {[%clk
0:01:36.9]} 26... Rxe8 {[%clk 0:01:09.8]} 27. Bg3 {[%clk 0:01:04.5]} 27... Ne4
{[%clk 0:01:08.7]} 28. Bh2 {[%clk 0:00:52.8]} 28... Qxb2 {[%clk 0:01:03.4]} 29.
Qc2 {[%clk 0:00:41.8]} 29... Qxc2 {[%clk 0:01:01.6]} 30. Rxc2 {[%clk 0:00:42]}
30... b5 {[%clk 0:00:51.7]} 31. Nxg6 {[%clk 0:00:25.9]} 31... hxg6 {[%clk
0:00:51.1]} 32. Nd6 {[%clk 0:00:17.5]} 32... Nxd6 {[%clk 0:00:50.2]} 33. Bxd6
{[%clk 0:00:18.4]} 33... Nxd4 {[%clk 0:00:49.8]} 34. Rd2 {[%clk 0:00:18.6]}
34... Nf5 {[%clk 0:00:42.9]} 35. Bc5 {[%clk 0:00:18.8]} 35... a6 {[%clk
0:00:23.5]} 36. Rxd5 {[%clk 0:00:18.3]} 36... Re1+ {[%clk 0:00:23.3]} 37. Kf2
{[%clk 0:00:17.9]} 37... Ra1 {[%clk 0:00:23.6]} 38. Rd2 {[%clk 0:00:17.8]} 38...
g5 {[%clk 0:00:20.4]} 39. g4 {[%clk 0:00:17.6]} 39... Nh4 {[%clk 0:00:18.4]} 40.
Bd4 {[%clk 0:00:17.4]} 40... Rh1 {[%clk 0:00:14.8]} 41. Be3 {[%clk 0:00:15.6]}
41... f6 {[%clk 0:00:13.4]} 42. Kg3 {[%clk 0:00:14.7]} 42... Kh7 {[%clk
0:00:10.9]} 43. Rd6 {[%clk 0:00:12.6]} 43... a5 {[%clk 0:00:09.2]} 44. Rd5
{[%clk 0:00:11.8]} 44... Rb1 {[%clk 0:00:08.9]} 45. a4 {[%clk 0:00:11.2]} 45...
bxa4 {[%clk 0:00:08]} 46. Rxa5 {[%clk 0:00:10.8]} 46... Rb3 {[%clk 0:00:07.7]}
47. Kf2 {[%clk 0:00:10.7]} 47... a3 {[%clk 0:00:08.2]} 48. Bc5 {[%clk
0:00:10.3]} 48... Rb2+ {[%clk 0:00:08.4]} 49. Kg3 {[%clk 0:00:09.6]} 49... Rg2#
{[%clk 0:00:08.2]} 0-1

[Event "Early-Titled-Tuesday-Blitz-March-05-2024"]
[Site "Chess.com"]
[Date "2024.03.05"]
[Round "5"]
[White "Predator0608"]
[Black "Ducke13"]
[Result "1-0"]
[WhiteElo "2551"]
[BlackElo "2356"]
[TimeControl "180+1"]
[EndTime "8:58:34 PST"]
[Termination "Predator0608 won by resignation"]

1. g3 {[%clk 0:03:00.9]} 1... Nf6 {[%clk 0:02:55.8]} 2. Bg2 {[%clk 0:03:01.8]}
2... d5 {[%clk 0:02:41.9]} 3. b3 {[%clk 0:03:00.5]} 3... g6 {[%clk 0:02:41.5]}
4. Bb2 {[%clk 0:03:00.8]} 4... Bg7 {[%clk 0:02:42.1]} 5. e3 {[%clk 0:03:01.4]}
5... O-O {[%clk 0:02:42.1]} 6. Ne2 {[%clk 0:03:01.9]} 6... c5 {[%clk 0:02:42.1]}
7. O-O {[%clk 0:03:01.3]} 7... Nc6 {[%clk 0:02:42.5]} 8. d3 {[%clk 0:03:01.1]}
8... b6 {[%clk 0:02:38.8]} 9. Nd2 {[%clk 0:03:00.9]} 9... Bb7 {[%clk 0:02:39.4]}
10. Qe1 {[%clk 0:02:46.2]} 10... e5 {[%clk 0:02:32.2]} 11. e4 {[%clk 0:02:44.7]}
11... Nd4 {[%clk 0:02:09]} 12. Qd1 {[%clk 0:02:23.5]} 12... Bh6 {[%clk
0:01:49.5]} 13. exd5 {[%clk 0:02:18.7]} 13... Bxd5 {[%clk 0:01:43]} 14. Nc3
{[%clk 0:02:10.9]} 14... Bxd2 {[%clk 0:01:31.7]} 15. Nxd5 {[%clk 0:02:00]} 15...
Nxd5 {[%clk 0:01:18.6]} 16. Qxd2 {[%clk 0:01:57.9]} 16... Qd6 {[%clk 0:01:12.1]}
17. Rfe1 {[%clk 0:01:49.4]} 17... Rae8 {[%clk 0:01:10.1]} 18. a3 {[%clk
0:01:46.8]} 18... h5 {[%clk 0:00:52.2]} 19. h4 {[%clk 0:01:40.6]} 19... Nf6
{[%clk 0:00:48.1]} 20. Qd1 {[%clk 0:01:28.7]} 20... Ng4 {[%clk 0:00:47.4]} 21.
c3 {[%clk 0:01:28.5]} 21... Nf5 {[%clk 0:00:34.8]} 22. Qc2 {[%clk 0:01:28.6]}
22... Rd8 {[%clk 0:00:30.3]} 23. Rad1 {[%clk 0:01:27]} 23... Qc7 {[%clk
0:00:29.3]} 24. Bc1 {[%clk 0:01:26.1]} 24... Rd7 {[%clk 0:00:27.4]} 25. Be4
{[%clk 0:01:20.4]} 25... Qd8 {[%clk 0:00:20.1]} 26. Bxf5 {[%clk 0:01:06.9]}
26... gxf5 {[%clk 0:00:21]} 27. d4 {[%clk 0:01:07.3]} 27... cxd4 {[%clk
0:00:15.6]} 28. Qxf5 {[%clk 0:01:06.3]} 28... Rd6 {[%clk 0:00:12]} 29. Qxh5
{[%clk 0:01:02.1]} 29... Rg6 {[%clk 0:00:11.2]} 30. Bg5 {[%clk 0:01:00.9]} 30...
Qc8 {[%clk 0:00:09.7]} 31. cxd4 {[%clk 0:00:58.8]} 31... exd4 {[%clk 0:00:09.5]}
32. Rxd4 {[%clk 0:00:59.3]} 32... Nf6 {[%clk 0:00:08.5]} 33. Bxf6 {[%clk
0:00:56.8]} 33... Rxf6 {[%clk 0:00:08.4]} 34. Rg4+ {[%clk 0:00:57]} 34... Rg6
{[%clk 0:00:08.6]} 35. Rxg6+ {[%clk 0:00:57.3]} 35... fxg6 {[%clk 0:00:09.1]}
36. Qxg6+ {[%clk 0:00:58.2]} 36... Kh8 {[%clk 0:00:09.5]} 37. Qh6+ {[%clk
0:00:59.1]} 37... Kg8 {[%clk 0:00:09.9]} 38. Qg6+ {[%clk 0:01:00]} 38... Kh8
{[%clk 0:00:10.1]} 39. Re7 {[%clk 0:00:50.9]} 39... Qc1+ {[%clk 0:00:09.3]} 40.
Kg2 {[%clk 0:00:51]} 40... Rxf2+ {[%clk 0:00:05.5]} 41. Kxf2 {[%clk 0:00:51.9]}
41... Qb2+ {[%clk 0:00:02.9]} 42. Re2 {[%clk 0:00:51.5]} 42... Qd4+ {[%clk
0:00:02.9]} 43. Kg2 {[%clk 0:00:50]} 43... Qd5+ {[%clk 0:00:03]} 44. Qe4 {[%clk
0:00:50.6]} 44... Qxe4+ {[%clk 0:00:02.1]} 45. Rxe4 {[%clk 0:00:51.5]} 45... a5
{[%clk 0:00:02.8]} 46. Re6 {[%clk 0:00:50.1]} 46... b5 {[%clk 0:00:02.9]} 47.
Rb6 {[%clk 0:00:50.3]} 47... b4 {[%clk 0:00:03.8]} 48. a4 {[%clk 0:00:50.1]}
48... Kg7 {[%clk 0:00:03.5]} 49. Rb5 {[%clk 0:00:51]} 49... Kf6 {[%clk
0:00:03.8]} 50. Rxa5 {[%clk 0:00:51.9]} 50... Ke6 {[%clk 0:00:04.7]} 51. Rb5
{[%clk 0:00:52.8]} 51... Kd6 {[%clk 0:00:05.6]} 52. Rxb4 {[%clk 0:00:53.7]}
52... Kc6 {[%clk 0:00:06.5]} 53. h5 {[%clk 0:00:52.4]} 53... Kc5 {[%clk
0:00:07.4]} 54. Rc4+ {[%clk 0:00:52.7]} 54... Kb6 {[%clk 0:00:07.8]} 55. h6
{[%clk 0:00:52.8]} 55... Kb7 {[%clk 0:00:08.7]} 56. h7 {[%clk 0:00:52.9]} 56...
Ka7 {[%clk 0:00:09.6]} 57. h8=N {[%clk 0:00:52.6]} 57... Kb6 {[%clk 0:00:10.5]}
58. g4 {[%clk 0:00:50.6]} 58... Kb7 {[%clk 0:00:11.4]} 59. g5 {[%clk 0:00:51.5]}
59... Ka7 {[%clk 0:00:12.3]} 60. g6 {[%clk 0:00:52.4]} 60... Kb6 {[%clk
0:00:13.2]} 61. g7 {[%clk 0:00:53.3]} 61... Kb7 {[%clk 0:00:14.1]} 62. g8=N
{[%clk 0:00:53.2]} 62... Ka7 {[%clk 0:00:15]} 63. Rc5 {[%clk 0:00:51.2]} 63...
Kb6 {[%clk 0:00:15.9]} 1-0